fUST/lending_fUST_20250512
["ID","MTS","AMOUNT","RATE_DAILY","PERIOD"]
[360760316,1746984645546,-171.175014,0.00021,2]
[360760317,1746984645555,-171.175014,0.00021,2]
[360760318,1746984645564,-151.0,0.00021,2]
[360760319,1746984645573,-151.0,0.00021,2]
[360760320,1746984645582,-230.604015,0.00021,2]
[360760321,1746984645590,-230.604015,0.00021,2]
[360760322,1746984645599,-199.964323,0.00021,2]
[360760323,1746984645608,-150.0,0.00021,2]
[360760324,1746984645617,-500.0,0.00021,7]
[360760325,1746984645626,-500.0,0.00021,7]
[360760326,1746984645635,-183.91,0.00021,7]
[360760327,1746984645643,-151.0,0.00021,2]
[360760328,1746984645652,-151.0,0.00021,2]
[360760329,1746984645663,-151.0,0.00021,2]
[360760330,1746984645672,-151.0,0.00021,2]
[360760331,1746984645681,-151.0,0.00021,2]
[360760332,1746984645690,-500.0,0.00021,7]
[360760333,1746984645699,-500.0,0.00021,7]
[360760334,1746984645708,-500.0,0.00021,7]
[360760335,1746984645718,-500.0,0.00021,7]
[360760336,1746984645728,-500.0,0.00021,7]
[360760337,1746984645738,-500.0,0.00021,7]
[360760338,1746984645747,-500.0,0.00021,7]
[360760339,1746984645756,-381.49,0.00021,7]
[360760340,1746984645766,-2000.0,0.00021,4]
[360760341,1746984645776,-500.0,0.00021,7]
[360760342,1746984645785,-151.0,0.00021,2]
[360760343,1746984645795,-7840.41710356,0.00021007,2]
[360760344,1746984645804,-5000.0,0.00021007,2]
[360760345,1746984645813,-5000.0,0.00021007,2]
[360760346,1746984645822,-5000.0,0.00021007,2]
[360760347,1746984645831,-5000.0,0.00021007,2]
[360760348,1746984645840,-3000.0,0.0002101,2]
[360760349,1746984645850,-600.0,0.00021016,2]
[360760350,1746984645859,-3000.0,0.0002102,2]
[360760351,1746984645869,-3000.0,0.0002103,2]
[360760352,1746984645878,-3000.0,0.0002104,2]
[360760353,1746984645888,-3000.0,0.0002105,2]
[360760354,1746984645897,-3000.0,0.0002106,2]
[360760355,1746984645906,-3000.0,0.0002107,2]
[360760356,1746984645917,-3000.0,0.0002108,2]
[360760357,1746984645926,-3000.0,0.0002109,2]
[360760358,1746984645935,-3000.0,0.000211,2]
[360760359,1746984645945,-3000.0,0.0002111,2]
[360760360,1746984645954,-3000.0,0.0002112,2]
[360760361,1746984645963,-3000.0,0.0002113,2]
[360760362,1746984645972,-3000.0,0.0002114,2]
[360760363,1746984645982,-3000.0,0.0002115,2]
[360760364,1746984645991,-3000.0,0.0002116,2]
[360760365,1746984646000,-3000.0,0.0002117,2]
[360760366,1746984646009,-3000.0,0.0002118,2]
[360760367,1746984646018,-3000.0,0.0002119,2]
[360760368,1746984646027,-3000.0,0.000212,2]
[360760369,1746984646036,-3000.0,0.0002121,2]
[360760370,1746984646045,-3000.0,0.0002122,2]
[360760371,1746984646054,-3000.0,0.0002123,2]
[360760372,1746984646063,-3000.0,0.0002124,2]
[360760373,1746984646072,-3000.0,0.0002125,2]
[360760374,1746984646081,-3000.0,0.0002126,2]
[360760375,1746984646090,-3000.0,0.0002127,2]
[360760376,1746984646099,-157.76,0.0002127,2]
[360760377,1746984646109,-3000.0,0.0002128,2]
[360760378,1746984646119,-3000.0,0.0002129,2]
[360760379,1746984646128,-3000.0,0.000213,2]
[360760380,1746984646138,-3000.0,0.0002131,2]
[360760381,1746984646147,-3000.0,0.0002132,2]
[360760382,1746984646156,-3000.0,0.0002133,2]
[360760383,1746984646168,-3000.0,0.0002134,2]
[360760384,1746984646178,-3000.0,0.0002135,2]
[360760385,1746984646187,-3000.0,0.0002136,2]
[360760386,1746984646197,-3000.0,0.0002137,2]
[360760387,1746984646206,-3000.0,0.0002138,2]
[360760388,1746984646215,-3000.0,0.0002139,2]
[360760389,1746984646225,-2001.21311193,0.000214,2]
[360760390,1746984646234,-3000.0,0.000214,2]
[360760391,1746984646244,-3000.0,0.0002141,2]
[360760392,1746984646255,-3000.0,0.0002142,2]
[360760393,1746984646265,-3000.0,0.0002143,2]
[360760394,1746984646276,-3780.849989,0.0002144,2]
[360760395,1746984646286,-1000.0,0.00021452,2]
[360760396,1746984646295,-216.0,0.000216,14]
[360760397,1746984646304,-96663.01651551,0.000217,2]
[360760398,1746984646314,-11667.0,0.000217,2]
[360760399,1746984646323,-1741.756711,0.0002174,5]
[360760400,1746984646332,-1000.0,0.0002176,5]
[360760401,1746984646343,-155.0,0.0002178,2]
[360760402,1746984646352,-1000.0,0.0002178,5]
[360760403,1746984646361,-1626.618952,0.0002178,5]
[360760404,1746984646370,-144152.875421,0.000218,2]
[360760405,1746984646380,-217.361788,0.000218,2]
[360760406,1746984646389,-217.361788,0.000218,2]
[360760407,1746984646398,-151.0,0.000218,2]
[360760408,1746984646408,-151.0,0.000218,2]
[360760409,1746984646422,-151.0,0.000218,2]
[360760410,1746984646432,-372.662326,0.000218,2]
[360760412,1746984646442,-372.662326,0.000218,2]
[360760414,1746984646451,-493.594514,0.000218,2]
[360760415,1746984646460,-493.594514,0.000218,2]
[360760416,1746984646469,-151.0,0.000218,2]
[360760417,1746984646479,-151.0,0.000218,2]
[360760418,1746984646488,-1000.0,0.000218,5]
[360760419,1746984646496,-1000.0,0.000218,5]
[360760420,1746984646506,-171.175014,0.000218,2]
[360760421,1746984646516,-171.175014,0.000218,2]
[360760422,1746984646525,-151.0,0.000218,2]
[360760423,1746984646535,-151.0,0.000218,2]
[360760424,1746984646543,-230.604015,0.000218,2]
[360760425,1746984646553,-230.604015,0.000218,2]
[360760427,1746984646562,-151.0,0.000218,2]
[360760428,1746984646572,-151.0,0.000218,2]
[360760429,1746984646582,-153.49358,0.000218,2]
[360760430,1746984646592,-151.0,0.000218,2]
[360760431,1746984646601,-151.0,0.000218,2]
[360760432,1746984646611,-1000.0,0.0002182,5]
[360760433,1746984646620,-1000.0,0.0002182,5]
[360760434,1746984646630,-1000.0,0.0002184,5]
[360760435,1746984646640,-1000.0,0.0002184,5]
[360760436,1746984646650,-1000.0,0.0002186,5]
[360760437,1746984646663,-1000.0,0.0002186,5]
[360760438,1746984646673,-1000.0,0.0002188,5]
[360760439,1746984646684,-1000.0,0.0002188,5]
[360760440,1746984646695,-1000.0,0.000219,5]
[360760441,1746984646705,-1000.0,0.000219,5]
[360760442,1746984646715,-181.96,0.00021917,2]
[360760443,1746984646725,-1305.7062031,0.00021918,7]
[360760444,1746984646735,-227.486588,0.00021918,2]
[360760445,1746984646745,-227.486588,0.00021918,2]
[360760446,1746984646754,-227.486588,0.00021918,2]
[360760447,1746984646764,-227.486588,0.00021918,2]
[360760448,1746984646774,-150.0,0.00021918,2]
[360760449,1746984646783,-150.0,0.00021918,2]
[360760450,1746984646793,-1000.0,0.0002192,5]
[360760451,1746984646802,-1000.0,0.0002192,5]
[360760452,1746984646812,-1000.0,0.0002194,5]
[360760453,1746984646821,-1000.0,0.0002194,5]
[360760454,1746984646830,-1000.0,0.0002196,5]
[360760455,1746984646839,-1000.0,0.0002196,5]
[360760457,1746984646848,-1000.0,0.0002198,5]
[360760458,1746984646857,-1000.0,0.0002198,5]
[360760460,1746984646867,-308.48,0.00022,7]
[360760461,1746984646876,-154.55,0.00022,14]
[360760462,1746984646885,-1094.34583011,0.00022,2]
[360760463,1746984646894,-500.0,0.00022,8]
[360760464,1746984646904,-500.0,0.00022,8]
[360760465,1746984646917,-66557.0,0.00022,2]
[360760466,1746984646927,-349.37010906,0.00022,2]
[360760467,1746984646936,-164.73651937,0.00022,10]
[360760468,1746984646945,-500.0,0.00022,2]
[360760469,1746984646955,-500.0,0.00022,2]
[360760470,1746984646964,-500.0,0.00022,2]
[360760471,1746984646973,-1000.0,0.00022,2]
[360760472,1746984646983,-169.949334,0.00022,2]
[360760474,1746984646993,-3000.0,0.00022,10]
[360760475,1746984647002,-2467.0,0.00022,30]
[360760476,1746984647011,-151.0,0.00022,7]
[360760477,1746984647020,-623.318269,0.00022,7]
[360760478,1746984647029,-623.318269,0.00022,7]
[360760479,1746984647038,-151.0,0.00022,7]
[360760481,1746984647047,-861.59,0.00022,2]
[360760482,1746984647056,-151.0,0.00022,7]
[360760483,1746984647066,-210.731765,0.00022,7]
[360760484,1746984647075,-210.731765,0.00022,7]
[360760485,1746984647085,-200.0,0.00022,2]
[360760486,1746984647094,-325.0,0.00022,2]
[360760487,1746984647103,-1000.0,0.00022,5]
[360760488,1746984647112,-1000.0,0.00022,5]
[360760489,1746984647121,-6150.63859051,0.00022,24]
[360760490,1746984647130,-150.0,0.00022,30]
[360760491,1746984647139,-212.1539542,0.00022,10]
[360760492,1746984647150,-997.71092301,0.00022,10]
[360760493,1746984647161,-6379.0,0.00022,2]
[360760494,1746984647170,-635.0,0.00022,2]
[360760495,1746984647179,-2000.0,0.00022,4]
[360760496,1746984647188,-314.1995513,0.00022,10]
[360760497,1746984647197,-2586.46677994,0.00022,30]
[360760498,1746984647206,-151.0,0.00022164,7]
[360760499,1746984647215,-151.0,0.00022164,7]
[360760500,1746984647224,-268.172939,0.00022164,7]
[360760501,1746984647233,-268.172939,0.00022164,7]
[360760502,1746984647242,-151.0,0.00022164,7]
[360760503,1746984647252,-200.0,0.00022326,120]
[360760504,1746984647263,-200.0,0.00022347,120]
[360760505,1746984647273,-2000.0,0.000225,2]
[360760506,1746984647282,-2000.0,0.000225,2]
[360760507,1746984647291,-2000.0,0.000225,2]
[360760508,1746984647300,-2000.0,0.000225,2]
[360760509,1746984647310,-2000.0,0.000225,2]
[360760510,1746984647319,-2000.0,0.000225,2]
[360760511,1746984647328,-2000.0,0.000225,2]
[360760512,1746984647339,-2000.0,0.000225,2]
[360760513,1746984647348,-2000.0,0.000225,2]
[360760514,1746984647357,-2000.0,0.000225,2]
[360760515,1746984647367,-2000.0,0.000225,2]
[360760516,1746984647375,-1088.4643,0.000225,2]
[360760517,1746984647385,-200.0,0.000226,120]
[360760518,1746984647394,-1336.475185,0.00022603,2]
[360760519,1746984647403,-900.0,0.0002266,2]
[360760520,1746984647414,-217.361788,0.00022761,7]
[360760521,1746984647423,-217.361788,0.00022761,7]
[360760522,1746984647433,-164.668058,0.00022761,7]
[360760523,1746984647442,-151.0,0.00022761,7]
[360760524,1746984647451,-372.662326,0.00022761,7]
[360760525,1746984647461,-372.662326,0.00022761,7]
[360760526,1746984647470,-493.594514,0.00022761,7]
[360760527,1746984647480,-227.486588,0.00022761,7]
[360760528,1746984647488,-493.594514,0.00022761,7]
[360760529,1746984647498,-227.486588,0.00022761,7]
[360760530,1746984647641,-151.0,0.00022761,7]
[360760531,1746984647652,-151.0,0.00022761,7]
[360760532,1746984647661,-171.175014,0.00022761,7]
[360760533,1746984647671,-171.175014,0.00022761,7]
[360760534,1746984647680,-248.0386232,0.00022761,7]
[360760535,1746984647689,-151.0,0.00022761,7]
[360760536,1746984647699,-230.604015,0.00022761,7]
[360760537,1746984647708,-230.604015,0.00022761,7]
[360760538,1746984647718,-151.0,0.00022761,7]
[360760539,1746984647727,-151.0,0.00022761,7]
[360760540,1746984647736,-151.0,0.00022761,7]
[360760541,1746984647745,-151.0,0.00022761,7]
[360760542,1746984647755,-166696.14553277,0.00022761,15]
[360760543,1746984647765,-300.0,0.00022821,2]
[360760544,1746984647774,-151.6780484,0.000229,2]
[360760545,1746984647784,-247.46366975,0.00023,2]
[360760546,1746984647793,-1333.57188435,0.00023,2]
[360760547,1746984647802,-160.0,0.00023,3]
[360760548,1746984647812,-160.0,0.00023,3]
[360760549,1746984647822,-160.0,0.00023,3]
[360760550,1746984647832,-3131.43925508,0.00023,2]
[360760551,1746984647841,-200.0,0.00023,2]
[360760552,1746984647850,-422.1676983,0.00023,3]
[360760553,1746984647859,-160.0,0.00023,3]
[360760554,1746984647869,-2000.0,0.00023,4]
[360760555,1746984647878,-160.0,0.00023,3]
[360760556,1746984647887,-181.96,0.00023287,2]
[360760557,1746984647896,-10498.10123762,0.000233,30]
[360760558,1746984647905,-212.1539542,0.000234,30]
[360760559,1746984647916,-997.71092301,0.000234,30]
[360760560,1746984647925,-314.1995513,0.000234,30]
[360760561,1746984647934,-169.0,0.00023562,3]
[360760562,1746984647943,-156.066024,0.000236,30]
[360760563,1746984647952,-1000.0,0.00023644,2]
[360760564,1746984647962,-156.066024,0.00023789,2]
[360760565,1746984647971,-2000.0,0.00024,4]
[360760566,1746984647980,-1678.87564746,0.00024,2]
[360760567,1746984647990,-151.0,0.00024,14]
[360760568,1746984647999,-422.07246323,0.00024,7]
[360760569,1746984648008,-160.0,0.00024,3]
[360760570,1746984648017,-208.30971735,0.00024,120]
[360760571,1746984648026,-212.1539542,0.00024,3]
[360760572,1746984648035,-422.1676983,0.00024,7]
[360760573,1746984648044,-422.1676983,0.00024,10]
[360760574,1746984648054,-160.0,0.00024,7]
[360760575,1746984648063,-160.0,0.00024,10]
[360760576,1746984648073,-160.0,0.00024,7]
[360760577,1746984648082,-160.0,0.00024,10]
[360760578,1746984648091,-154.0018787,0.00024082,2]
[360760579,1746984648100,-153.0,0.00024082,2]
[360760580,1746984648111,-153.0,0.00024082,2]
[360760581,1746984648120,-153.0,0.00024082,2]
[360760582,1746984648130,-153.0,0.00024082,2]
[360760583,1746984648139,-153.0,0.00024082,2]
[360760584,1746984648148,-153.0,0.00024082,2]
[360760585,1746984648157,-153.0,0.00024082,2]
[360760586,1746984648169,-2584.77,0.000241,7]
[360760587,1746984648178,-200.0,0.00024291,120]
[360760588,1746984648188,-1200.0,0.00024304,2]
[360760589,1746984648197,-181.96,0.00024657,2]
[360760590,1746984648206,-300.0,0.00024658,2]
[360760591,1746984648215,-250.0,0.00024658,2]
[360760592,1746984648225,-200.0,0.00024658,2]
[360760593,1746984648235,-380.0,0.00024658,2]
[360760594,1746984648245,-980.8990295,0.00024658,3]
[360760595,1746984648254,-215.66380726,0.00024658,2]
[360760596,1746984648265,-200.0,0.00024658,15]
[360760597,1746984648275,-12832.88800349,0.00024774,2]
[360760598,1746984648284,-363.51359936,0.000248,2]
[360760599,1746984648293,-1000.0,0.00024852,2]
[360760600,1746984648302,-1000.0,0.00024852,2]
[360760601,1746984648312,-1000.0,0.00024852,2]
[360760602,1746984648322,-1000.0,0.00024852,2]
[360760603,1746984648331,-1000.0,0.00024852,2]
[360760604,1746984648342,-1000.0,0.00024852,2]
[360760605,1746984648351,-1000.0,0.00024852,2]
[360760606,1746984648361,-1000.0,0.00024852,2]
[360760607,1746984648371,-456.55216519,0.00024852,2]
[360760608,1746984648380,-1000.0,0.00024852,2]
[360760609,1746984648390,-1000.0,0.00024852,2]
[360760610,1746984648400,-1118.30225068,0.00024852,2]
[360760611,1746984648412,-1000.0,0.00024852,2]
[360760612,1746984648421,-1000.0,0.00024852,2]
[360760613,1746984648431,-1000.0,0.00024852,2]
[360760614,1746984648440,-1014.4506736,0.00024852,2]
[360760615,1746984648449,-1000.0,0.00024852,2]
[360760616,1746984648458,-500.70196316,0.00024852,2]
[360760617,1746984648468,-1000.0,0.00024852,2]
[360760618,1746984648477,-1000.0,0.00024852,2]
[360760619,1746984648487,-1000.0,0.00024852,2]
[360760620,1746984648496,-1000.0,0.00024852,2]
[360760621,1746984648505,-1000.0,0.00024852,2]
[360760622,1746984648514,-639.93959536,0.00024852,2]
[360760623,1746984648524,-1000.0,0.00024852,2]
[360760624,1746984648533,-1000.0,0.00024852,2]
[360760625,1746984648542,-1000.0,0.00024852,2]
[360760626,1746984648551,-1125.33112192,0.00024852,2]
[360760627,1746984648560,-1022.30123638,0.00024852,2]
[360760628,1746984648570,-799.52756441,0.00024852,2]
[360760629,1746984648579,-1000.0,0.00024852,2]
[360760630,1746984648589,-1000.0,0.00024852,2]
[360760631,1746984648598,-1000.0,0.00024852,2]
[360760632,1746984648607,-1000.0,0.00024852,2]
[360760633,1746984648617,-1031.6458299,0.00024852,2]
[360760634,1746984648627,-1000.0,0.00024852,2]
[360760635,1746984648636,-1024.30265086,0.00024852,2]
[360760636,1746984648645,-1000.83292235,0.00024852,2]
[360760637,1746984648654,-150.2848419,0.0002487,2]
[360760638,1746984648665,-500.0,0.00024873,2]
[360760639,1746984648674,-151.0,0.000249,7]
[360760640,1746984648684,-291.280783,0.000249,7]
[360760641,1746984648694,-291.280783,0.000249,7]
[360760642,1746984648703,-151.0,0.000249,7]
[360760643,1746984648713,-151.0,0.000249,7]
[360760644,1746984648722,-623.318269,0.000249,7]
[360760645,1746984648732,-623.318269,0.000249,7]
[360760646,1746984648741,-268.172939,0.000249,7]
[360760647,1746984648751,-268.172939,0.000249,7]
[360760648,1746984648760,-151.0,0.000249,7]
[360760649,1746984648769,-151.0,0.000249,7]
[360760650,1746984648779,-210.731765,0.000249,7]
[360760651,1746984648788,-210.731765,0.000249,7]
[360760652,1746984648798,-217.361788,0.000249,7]
[360760653,1746984648807,-217.361788,0.000249,7]
[360760654,1746984648816,-151.0,0.000249,7]
[360760655,1746984648826,-372.662326,0.000249,7]
[360760656,1746984648835,-372.662326,0.000249,7]
[360760657,1746984648844,-493.594514,0.000249,7]
[360760658,1746984648854,-227.486588,0.000249,7]
[360760659,1746984648864,-493.594514,0.000249,7]
[360760660,1746984648874,-227.486588,0.000249,7]
[360760661,1746984648883,-151.0,0.000249,7]
[360760662,1746984648892,-240.477686,0.000249,7]
[360760663,1746984648903,-171.175014,0.000249,7]
[360760664,1746984648912,-171.175014,0.000249,7]
[360760665,1746984648922,-151.0,0.000249,7]
[360760666,1746984648932,-230.604015,0.000249,7]
[360760667,1746984648942,-230.604015,0.000249,7]
[360760668,1746984648951,-151.0,0.000249,7]
[360760669,1746984648961,-151.0,0.000249,7]
[360760670,1746984648971,-151.0,0.000249,7]
[360760671,1746984648980,-744056.146069,0.000249,2]
[360760672,1746984648990,-173.943262,0.000249,7]
[360760673,1746984648999,-11811.11385726,0.000249,2]
[360760674,1746984649008,-1104.436492,0.0002498,5]
[360760675,1746984649017,-1500.65,0.00025,2]
[360760676,1746984649027,-34272.15634639,0.00025,7]
[360760677,1746984649036,-12610.21250885,0.00025,7]
[360760678,1746984649046,-87497.52090039,0.00025,2]
[360760679,1746984649055,-193.00227712,0.00025,3]
[360760680,1746984649065,-608.0,0.00025,20]
[360760681,1746984649074,-422.01755058,0.00025,10]
[360760682,1746984649083,-1058.22187688,0.00025,2]
[360760683,1746984649092,-15827.03820349,0.00025,2]
[360760684,1746984649102,-2606.55428913,0.00025,2]
[360760685,1746984649111,-206.81133032,0.00025,2]
[360760686,1746984649121,-10364.0,0.00025,2]
[360760687,1746984649131,-500.0,0.00025,2]
[360760688,1746984649140,-500.0,0.00025,2]
[360760689,1746984649150,-500.0,0.00025,2]
[360760690,1746984649159,-500.0,0.00025,2]
[360760691,1746984649169,-500.0,0.00025,2]
[360760692,1746984649179,-160.0,0.00025,3]
[360760693,1746984649189,-7239.07097755,0.00025,2]
[360760694,1746984649198,-150.0,0.00025,3]
[360760695,1746984649207,-1361.16327,0.00025,5]
[360760696,1746984649217,-384.40999512,0.00025,14]
[360760697,1746984649227,-10000.0,0.00025,2]
[360760698,1746984649236,-2797.78257586,0.00025,2]
[360760699,1746984649245,-10000.0,0.00025,2]
[360760700,1746984649255,-1200.0,0.00025,30]
[360760701,1746984649269,-1200.0,0.00025,30]
[360760702,1746984649278,-1200.0,0.00025,30]
[360760703,1746984649287,-1200.0,0.00025,30]
[360760704,1746984649297,-1200.0,0.00025,30]
[360760705,1746984649307,-1200.0,0.00025,30]
[360760706,1746984649316,-1200.0,0.00025,30]
[360760707,1746984649325,-1200.0,0.00025,30]
[360760708,1746984649335,-1200.0,0.00025,30]
[360760709,1746984649345,-1200.0,0.00025,30]
[360760710,1746984649356,-1200.0,0.00025,30]
[360760711,1746984649365,-1200.0,0.00025,30]
[360760712,1746984649375,-1200.0,0.00025,30]
[360760713,1746984649384,-1200.0,0.00025,30]
[360760714,1746984649394,-1200.0,0.00025,30]
[360760715,1746984649403,-1200.0,0.00025,30]
[360760716,1746984649412,-1200.0,0.00025,30]
[360760717,1746984649421,-1200.0,0.00025,30]
[360760718,1746984649431,-293.85068442,0.00025,30]
[360760719,1746984649440,-500.0,0.00025,30]
[360760720,1746984649450,-1200.0,0.00025,30]
[360760721,1746984649459,-500.0,0.00025,30]
[360760722,1746984649468,-1200.0,0.00025,30]
[360760723,1746984649478,-500.0,0.00025,30]
[360760724,1746984649487,-1200.0,0.00025,30]
[360760725,1746984649497,-502.76189399,0.00025,30]
[360760726,1746984649506,-1200.0,0.00025,30]
[360760727,1746984649515,-500.0,0.00025,30]
[360760728,1746984649525,-1200.0,0.00025,30]
[360760729,1746984649534,-500.0,0.00025,30]
[360760730,1746984649544,-500.0,0.00025,30]
[360760731,1746984649553,-1200.0,0.00025,30]
[360760732,1746984649563,-499.3,0.00025,30]
[360760733,1746984649572,-1200.0,0.00025,30]
[360760734,1746984649581,-500.0,0.00025,30]
[360760735,1746984649590,-1200.0,0.00025,30]
[360760736,1746984649600,-500.0,0.00025,30]
[360760737,1746984649609,-500.0,0.00025,30]
[360760738,1746984649619,-2313.48329383,0.00025,30]
[360760739,1746984649628,-500.0,0.00025,30]
[360760740,1746984649637,-500.0,0.00025,30]
[360760741,1746984649647,-800.0,0.00025,30]
[360760742,1746984649657,-500.0,0.00025,30]
[360760743,1746984649668,-800.0,0.00025,30]
[360760744,1746984649678,-500.0,0.00025,30]
[360760745,1746984649687,-800.0,0.00025,30]
[360760746,1746984649696,-800.0,0.00025,30]
[360760747,1746984649706,-500.0,0.00025,30]
[360760748,1746984649715,-800.0,0.00025,30]
[360760749,1746984649724,-500.0,0.00025,30]
[360760750,1746984649733,-800.0,0.00025,30]
[360760751,1746984649743,-800.0,0.00025,30]
[360760752,1746984649752,-800.0,0.00025,30]
[360760753,1746984649761,-500.0,0.00025,30]
[360760754,1746984649770,-800.0,0.00025,30]
[360760755,1746984649779,-500.0,0.00025,30]
[360760756,1746984649789,-800.0,0.00025,30]
[360760757,1746984649798,-603.99013442,0.00025,30]
[360760758,1746984649807,-509.98091602,0.00025,30]
[360760759,1746984649817,-800.0,0.00025,30]
[360760760,1746984649826,-429.5248757,0.00025,30]
[360760761,1746984649835,-800.0,0.00025,30]
[360760762,1746984649845,-800.0,0.00025,30]
[360760763,1746984649854,-500.0,0.00025,30]
[360760764,1746984649864,-500.0,0.00025,30]
[360760765,1746984649874,-800.0,0.00025,30]
[360760766,1746984649883,-500.0,0.00025,30]
[360760767,1746984649892,-800.0,0.00025,30]
[360760768,1746984649902,-500.0,0.00025,30]
[360760769,1746984649911,-800.0,0.00025,30]
[360760770,1746984649920,-500.0,0.00025,30]
[360760771,1746984649929,-500.0,0.00025,30]
[360760772,1746984649938,-800.0,0.00025,30]
[360760773,1746984649948,-500.0,0.00025,30]
[360760774,1746984649957,-800.0,0.00025,30]
[360760775,1746984649966,-753.83273903,0.00025,30]
[360760776,1746984649975,-800.0,0.00025,30]
[360760777,1746984649984,-800.0,0.00025,30]
[360760778,1746984649993,-800.0,0.00025,30]
[360760779,1746984650002,-800.0,0.00025,30]
[360760780,1746984650011,-800.0,0.00025,30]
[360760781,1746984650019,-800.0,0.00025,30]
[360760782,1746984650028,-166.23275869,0.00025,30]
[360760783,1746984650038,-500.0,0.00025,30]
[360760784,1746984650047,-500.0,0.00025,30]
[360760785,1746984650056,-800.0,0.00025,30]
[360760786,1746984650065,-500.3345048,0.00025,30]
[360760787,1746984650074,-800.0,0.00025,30]
[360760788,1746984650083,-800.0,0.00025,30]
[360760789,1746984650092,-500.06610038,0.00025,30]
[360760790,1746984650101,-800.0,0.00025,30]
[360760791,1746984650110,-1100.0,0.00025,30]
[360760792,1746984650119,-327.05244631,0.00025,30]
[360760793,1746984650128,-499.3,0.00025,30]
[360760794,1746984650137,-1651.69506819,0.00025,30]
[360760795,1746984650146,-1209.79170228,0.00025,120]
[360760796,1746984650155,-4277.50288716,0.00025,120]
[360760797,1746984650164,-217.361788,0.00025,7]
[360760798,1746984650174,-217.361788,0.00025,7]
[360760799,1746984650183,-151.0,0.00025,7]
[360760800,1746984650192,-372.662326,0.00025,7]
[360760801,1746984650201,-372.662326,0.00025,7]
[360760802,1746984650210,-493.594514,0.00025,7]
[360760803,1746984650219,-227.486588,0.00025,7]
[360760804,1746984650228,-493.594514,0.00025,7]
[360760805,1746984650237,-227.486588,0.00025,7]
[360760806,1746984650246,-151.0,0.00025,7]
[360760807,1746984650255,-1000.0,0.00025,5]
[360760808,1746984650265,-171.175014,0.00025,7]
[360760809,1746984650276,-171.175014,0.00025,7]
[360760810,1746984650285,-151.0,0.00025,7]
[360760811,1746984650294,-230.604015,0.00025,7]
[360760812,1746984650303,-230.604015,0.00025,7]
[360760813,1746984650313,-212.1539542,0.00025,30]
[360760814,1746984650322,-151.0,0.00025,7]
[360760815,1746984650331,-151.0,0.00025,7]
[360760816,1746984650341,-422.1676983,0.00025,30]
[360760817,1746984650350,-422.1676983,0.00025,30]
[360760818,1746984650359,-160.0,0.00025,30]
[360760819,1746984650368,-160.0,0.00025,30]
[360760820,1746984650377,-151.0,0.00025,7]
[360760821,1746984650386,-997.71092301,0.00025,30]
[360760822,1746984650395,-202.525059,0.00025,2]